bitfinex/quotes_SOLUSD_20241220
["timestamp","ask_amount","ask_price","bid_price","bid_amount"]
[1734666835722,10.85302741,196.64,196.57,30.52226831]
[1734666836087,9.89922101,196.63,196.57,20.6230473]
[1734666836290,10.8530756,196.62,196.57,20.6230473]
[1734666836512,9.89922101,196.61,196.57,20.6230473]
[1734666836811,10.85318876,196.6,196.57,20.6230473]
[1734666837199,0.95396775,196.6,196.57,20.6230473]
[1734666838103,0.95396775,196.6,196.57,0.6230473]
[1734666838316,9.89922101,196.58,196.57,0.6230473]
[1734666838609,33.67610501,196.58,196.57,0.6230473]
[1734666839193,0.95396775,196.6,196.57,0.6230473]
[1734666839517,10.85329088,196.59,196.57,0.6230473]
[1734666839694,9.89922101,196.58,196.57,0.6230473]
[1734666839889,0.95406987,196.59,196.57,0.6230473]
[1734666840221,10.85329088,196.59,196.57,0.6230473]
[1734666840627,33.67610501,196.58,196.57,0.6230473]
[1734666841110,40.03050501,196.58,196.57,4.73e-05]
[1734666842213,30.131284,196.58,196.57,4.73e-05]
[1734666842405,40.03050501,196.58,196.57,4.73e-05]
[1734666843022,611.02054665,196.58,196.57,4.73e-05]
[1734666843216,587.24366265,196.58,196.57,4.73e-05]
[1734666847421,587.24366265,196.58,196.57,9.89926831]
[1734666850320,587.24366265,196.58,196.4,13.26474154]
[1734666850321,20.0,196.47,196.4,13.26474154]
[1734666850621,9.89922101,196.44,196.4,4.8395103]
[1734666850795,0.95497171,196.43,196.4,4.8395103]
[1734666851124,9.89922101,196.43,196.37,0.6230473]
[1734666851304,0.89378965,196.42,196.37,0.6230473]
[1734666851499,9.89922101,196.41,196.37,0.6230473]
[1734666851704,0.95286207,196.4,196.37,0.6230473]
[1734666852623,0.95488572,196.42,196.37,0.6230473]
[1734666853310,0.95488572,196.42,196.38,15.57011143]
[1734666853510,0.95476566,196.44,196.38,15.57011143]
[1734666854032,18.69098095,196.47,196.4,15.57011143]
[1734666854033,0.95475709,196.46,196.4,15.57011143]
[1734666855507,16.52486852,196.46,196.38,15.57011143]
[1734666855916,0.95475709,196.46,196.41,15.57011143]
[1734666856113,15.57011143,196.47,196.4,15.57011143]
[1734666856426,16.5246929,196.46,196.38,15.57011143]
[1734666856629,16.5246929,196.46,196.39,15.57011143]
[1734666856936,588.19824412,196.46,196.4,15.57011143]
[1734666857105,587.24366265,196.46,196.4,15.57011143]
[1734666858325,0.95460189,196.45,196.4,15.57011143]
[1734666858532,16.52471332,196.45,196.37,0.6230473]
[1734666858729,16.52471332,196.45,196.38,15.57011143]
[1734666861703,0.95460189,196.45,196.39,15.57011143]
[1734666862322,0.95460189,196.45,196.4,15.57011143]
[1734666862518,0.95460189,196.45,196.41,15.57011143]
[1734666862721,0.95460189,196.45,196.4,15.57011143]
[1734666865425,0.95460189,196.45,196.41,15.57011143]
[1734666865726,587.24366265,196.46,196.42,15.57011143]
[1734666866322,0.95452942,196.45,196.4,15.57011143]
[1734666866921,16.52464085,196.45,196.37,0.6230473]
[1734666867118,15.57011143,196.42,196.37,0.6230473]
[1734666867433,0.95486563,196.41,196.37,0.6230473]
[1734666868236,0.95483378,196.4,196.37,0.6230473]
[1734666868406,0.95485117,196.42,196.37,0.6230473]
[1734666869336,16.5249626,196.42,196.37,0.6230473]
[1734666871321,15.57011143,196.4,196.37,0.6230473]
[1734666871520,15.57011143,196.38,196.37,0.6230473]
[1734666872427,40.30215783,196.38,196.37,0.6230473]
[1734666872623,40.30215783,196.38,196.28,20.82320573]
[1734666872824,15.57011143,196.32,196.25,15.57011143]
[1734666873026,0.95538728,196.31,196.25,15.57011143]
[1734666873945,16.52549871,196.31,196.24,15.57011143]
[1734666874343,15.57011143,196.29,196.22,15.57011143]
[1734666874529,0.95560485,196.28,196.22,15.57011143]
[1734666874920,0.95560485,196.28,196.21,2.07625513]
[1734666875113,587.24366265,196.32,196.27,15.57011143]
[1734666875114,0.95546837,196.29,196.27,15.57011143]
[1734666875319,0.95534108,196.31,196.28,15.57011143]
[1734666875638,0.95534108,196.31,196.29,15.57011143]
[1734666875838,587.24366265,196.32,196.3,15.57011143]
[1734666876039,587.24366265,196.32,196.22,12.86629]
[1734666876040,587.24366265,196.32,196.31,15.57011143]
[1734666876240,587.24366265,196.32,196.3,15.57011143]
[1734666878449,0.95521335,196.31,196.3,15.57011143]
[1734666878751,587.24366265,196.32,196.3,15.57011143]
[1734666878942,587.24366265,196.32,196.29,15.57011143]
[1734666879333,587.24366265,196.32,196.3,15.57011143]
[1734666879542,587.24366265,196.32,196.31,15.57011143]
[1734666879946,587.24366265,196.32,196.3,15.57011143]
[1734666880349,587.24366265,196.32,196.31,15.57011143]
[1734666882255,587.24366265,196.32,196.25,20.0]
[1734666882256,587.24366265,196.32,196.3,15.57011143]
[1734666882436,587.24366265,196.32,196.31,15.57011143]
[1734666882631,587.24366265,196.32,196.3,15.57011143]
[1734666883167,587.24366265,196.32,196.29,15.57011143]
[1734666883337,0.95520531,196.31,196.29,15.57011143]
[1734666884353,587.24366265,196.32,196.29,15.57011143]
[1734666884551,0.95521728,196.31,196.29,15.57011143]
[1734666884862,587.24366265,196.32,196.29,15.57011143]
[1734666885067,587.24366265,196.32,196.3,15.57011143]
[1734666885557,0.95520932,196.31,196.3,15.57011143]
[1734666885726,587.24366265,196.32,196.3,15.57011143]
[1734666885930,587.24366265,196.32,196.29,15.57011143]
[1734666888075,0.95520364,196.31,196.28,15.57011143]
[1734666888233,0.95520364,196.31,196.27,15.57011143]
[1734666888433,0.95520364,196.31,196.21,2.07625513]
[1734666888666,0.95520364,196.31,196.25,15.57011143]
[1734666888842,0.95520364,196.31,196.21,2.07625513]
[1734666888843,0.95520364,196.31,196.26,15.57011143]
[1734666889254,0.95520364,196.31,196.27,15.57011143]
[1734666889639,0.95520364,196.31,196.28,15.57011143]
[1734666889873,0.95520364,196.31,196.27,15.57011143]
[1734666892359,0.95520364,196.31,196.21,14.81765513]
[1734666892360,0.95520364,196.31,196.28,15.57011143]
[1734666894375,0.95520364,196.31,196.27,15.57011143]
[1734666895051,0.95520364,196.31,196.28,15.57011143]
[1734666896666,0.95520364,196.31,196.27,15.57011143]
[1734666899080,0.95520364,196.31,196.26,15.57011143]
[1734666899566,587.24366265,196.32,196.3,15.57011143]
[1734666899859,587.24366265,196.32,196.31,15.57011143]
[1734666900454,587.24366265,196.32,196.27,6.3988]
[1734666900455,587.24366265,196.32,196.3,15.57011143]
[1734666901777,587.24366265,196.32,196.31,15.57011143]
[1734666903072,587.24366265,196.32,196.3,15.57011143]
[1734666903272,587.24366265,196.32,196.31,15.57011143]
[1734666906196,587.24366265,196.32,196.31,15.69560143]
[1734666906384,485.22523979,196.32,196.31,15.69560143]
[1734666906766,479.48993979,196.32,196.31,39.47248543]
[1734666906962,451.68472717,196.32,196.31,41.13788543]
[1734666907187,419.63855573,196.32,196.31,41.13788543]
[1734666907390,404.34675573,196.32,196.31,41.13788543]
[1734666907693,383.05565573,196.32,196.31,41.13788543]
[1734666907987,371.99255573,196.32,196.31,41.13788543]
[1734666908173,334.01205573,196.32,196.31,47.39818543]
[1734666908366,328.39645573,196.32,196.31,31.828074]
[1734666908570,328.39645573,196.32,196.31,47.39818543]
[1734666910186,237.29533287,196.32,196.31,47.39818543]
[1734666910395,226.43863287,196.32,196.31,47.39818543]
[1734666910687,218.36503287,196.32,196.31,47.39818543]
[1734666910891,211.62713287,196.32,196.31,47.39818543]
[1734666911083,204.78173287,196.32,196.31,47.39818543]
[1734666911283,196.61793287,196.32,196.31,6.2603]
[1734666911490,196.61793287,196.32,196.31,21.83041143]
[1734666911994,189.98513287,196.32,196.31,21.95590143]
[1734666912193,185.34723287,196.32,196.31,21.95590143]
[1734666912395,171.52643287,196.32,196.31,21.95590143]
[1734666912595,165.04853287,196.32,196.31,45.73278543]
[1734666912787,77.40791001,196.32,196.31,45.73278543]
[1734666913191,74.04001001,196.32,196.31,45.73278543]
[1734666913391,74.04001001,196.32,196.31,21.83041143]
[1734666913700,74.04001001,196.32,196.31,15.57011143]
[1734666915189,74.04001001,196.32,196.3,15.57011143]
[1734666916618,74.04001001,196.32,196.31,15.57011143]
[1734666919503,74.04001001,196.32,196.28,15.57011143]
[1734666919798,74.04001001,196.32,196.27,15.57011143]
[1734666920100,74.04001001,196.32,196.28,15.57011143]
[1734666921013,74.04001001,196.32,196.22,21.32034446]
[1734666921014,74.04001001,196.32,196.3,9.96997293]
[1734666921778,74.04001001,196.32,196.25,12.7384]
[1734666921987,74.04001001,196.32,196.25,9.96997293]
[1734666921988,0.95510403,196.31,196.25,9.96997293]
[1734666922193,10.92507696,196.31,196.24,9.96997293]
[1734666922997,15.58469508,196.3,196.21,2.07625513]
[1734666923201,16.54015777,196.29,196.22,15.58469508]
[1734666923501,0.95546269,196.29,196.23,15.58469508]
[1734666924201,0.95535992,196.28,196.23,15.58469508]
[1734666925297,0.95540752,196.29,196.24,15.58469508]
[1734666925674,0.95540752,196.29,196.23,20.0]
[1734666925903,16.5401026,196.29,196.23,20.0]
[1734666926481,0.95540752,196.29,196.24,15.58469508]
[1734666926682,0.95533468,196.3,196.24,15.58469508]
[1734666926987,0.95532313,196.31,196.26,15.58469508]
[1734666927295,74.9952337,196.32,196.27,15.58469508]
[1734666928216,74.9952337,196.32,196.26,15.58469508]
[1734666928504,74.9952337,196.32,196.25,15.58469508]
[1734666928505,90.57992878,196.32,196.25,15.58469508]
[1734666928694,15.58469508,196.31,196.21,2.07625513]
[1734666928897,0.95540513,196.3,196.24,15.58469508]
[1734666929789,0.95531331,196.31,196.25,15.58469508]
[1734666930191,0.95531331,196.31,196.26,15.58469508]
[1734666931287,0.95531331,196.31,196.25,15.58469508]
[1734666931488,16.54000839,196.31,196.24,35.58469508]
[1734666931982,0.95531331,196.31,196.25,15.58469508]
[1734666932310,0.95531331,196.31,196.26,15.58469508]
[1734666932813,0.95531331,196.31,196.25,15.58469508]
[1734666934413,0.95531331,196.31,196.26,15.58469508]
[1734666934592,0.95531331,196.31,196.27,15.58469508]
[1734666935490,74.04001001,196.32,196.28,15.58469508]
[1734666935812,74.04001001,196.32,196.29,15.58469508]
[1734666936387,74.04001001,196.32,196.28,15.58469508]
[1734666936795,74.04001001,196.32,196.27,15.58469508]
[1734666936997,0.95518324,196.31,196.27,15.58469508]
[1734666937214,0.95518324,196.31,196.26,15.58469508]
[1734666938216,74.99525234,196.32,196.26,15.58469508]
[1734666939137,74.99525234,196.32,196.24,26.4956]
[1734666939138,74.04001001,196.32,196.3,15.58469508]
[1734666939313,74.04001001,196.32,196.29,15.58469508]
[1734666939502,74.04001001,196.32,196.28,15.58469508]
[1734666940303,74.04001001,196.32,196.27,15.58469508]
[1734666941704,74.04001001,196.32,196.28,15.58469508]
[1734666943217,74.04001001,196.32,196.27,15.58469508]
[1734666943520,74.04001001,196.32,196.28,15.58469508]
[1734666944000,74.04001001,196.32,196.26,15.58469508]
[1734666944197,74.99520596,196.32,196.26,15.58469508]
[1734666945024,74.99520596,196.32,196.26,9.97189144]
[1734666945198,74.04001001,196.32,196.26,9.97189144]
[1734666945511,0.95521713,196.31,196.25,9.97189144]
[1734666945823,0.95521713,196.31,196.26,9.97189144]
[1734666945998,0.95521713,196.31,196.25,9.97189144]
[1734666946201,0.95521713,196.31,196.26,9.97189144]
[1734666952435,74.99524976,196.32,196.26,9.97189144]
[1734666953735,74.04001001,196.32,196.26,9.97189144]
[1734666953933,0.95523433,196.31,196.26,9.97189144]
[1734666954177,9.18015484,196.32,196.31,23.902374]
[1734666954295,9.97189144,196.49,196.34,20.0]
[1734666954492,0.89145172,196.48,196.42,9.97189144]
[1734666956943,0.89145172,196.48,196.35,67.34778989]
[1734666957111,15.55691338,196.48,196.41,15.55691338]
[1734666957310,0.89145172,196.47,196.41,15.55691338]
[1734666958215,0.89145172,196.48,196.41,15.55691338]
[1734666959713,16.4483651,196.48,196.41,15.55691338]
[1734666960635,0.89145172,196.48,196.4,15.55691338]
[1734666960824,1.5857,196.5,196.34,32.7326]
[1734666960825,15.55691338,196.44,196.38,15.55691338]
[1734666961017,15.55691338,196.41,196.35,15.55691338]
[1734666961217,0.89145172,196.4,196.35,15.55691338]
[1734666961619,16.4483651,196.4,196.33,15.55691338]
[1734666962226,16.4483651,196.4,196.34,15.55691338]
[1734666962426,0.89145172,196.4,196.34,15.55691338]
[1734666962636,0.89145172,196.4,196.35,15.55691338]
[1734666963819,0.89145172,196.41,196.36,15.55691338]
[1734666964033,2.52145172,196.42,196.36,15.55691338]
[1734666964243,2.52145172,196.42,196.37,15.55691338]
[1734666965342,1.63,196.42,196.37,15.55691338]
[1734666965529,1.63,196.42,196.38,15.55691338]
[1734666967137,1.63,196.42,196.39,15.55691338]
[1734666967343,0.89145172,196.45,196.4,15.55691338]
[1734666968241,0.89145172,196.46,196.41,15.55691338]
[1734666968925,0.89145172,196.46,196.4,15.55691338]
[1734666969247,1.5254,196.47,196.42,15.55691338]
[1734666969640,1.5254,196.47,196.43,15.55691338]
[1734666970146,1.5254,196.47,196.44,15.55691338]
[1734666971122,1.5254,196.47,196.43,15.55691338]
[1734666971939,1.5254,196.47,196.42,15.55691338]
[1734666973955,1.5254,196.47,196.41,35.55691338]
[1734666974319,2.41685172,196.47,196.41,35.55691338]
[1734666975627,2.41685172,196.47,196.41,20.0]
[1734666976647,17.9737651,196.47,196.41,20.0]
[1734666976948,9.96056009,196.44,196.38,9.96056009]
[1734666977254,9.96056009,196.44,196.41,20.0]
[1734666977457,9.96056009,196.45,196.41,20.0]
[1734666977633,0.89145172,196.44,196.41,20.0]
[1734666978629,9.96056009,196.43,196.33,15.87831103]
[1734666978828,10.85201181,196.42,196.35,9.96056009]
[1734666979246,10.85201181,196.42,196.31,13.30789822]
[1734666979247,9.96056009,196.39,196.32,9.96056009]
[1734666979444,0.89145172,196.38,196.32,9.96056009]
[1734666979644,10.85201181,196.38,196.32,9.96056009]
[1734666980031,10.85201181,196.38,196.31,9.96056009]
[1734666980230,9.96056009,196.37,196.3,9.96056009]
[1734666980450,0.89145172,196.36,196.3,9.96056009]
[1734666980858,0.89145172,196.36,196.31,9.96056009]
[1734666981045,0.89145172,196.36,196.31,15.57362663]
[1734666981360,0.89145172,196.37,196.31,15.57362663]
[1734666981554,16.46507835,196.37,196.31,15.57362663]
[1734666982353,0.89145172,196.37,196.32,15.57362663]
[1734666982533,0.89145172,196.37,196.31,35.57362663]
[1734666982948,0.89145172,196.37,196.32,15.57362663]
[1734666983960,0.89145172,196.37,196.31,35.57362663]
[1734666984556,16.46507835,196.37,196.31,15.57362663]
[1734666984756,0.89145172,196.37,196.31,15.57362663]
[1734666984963,0.89145172,196.37,196.32,15.57362663]
[1734666985162,0.89145172,196.38,196.32,15.57362663]
[1734666985460,15.57362663,196.33,196.27,36.39367309]
[1734666985667,16.46507835,196.32,196.27,20.82004646]
[1734666986575,15.57362663,196.31,196.27,20.82004646]
[1734666986875,0.89145172,196.3,196.27,20.82004646]
[1734666988666,0.89145172,196.31,196.27,20.82004646]
[1734666990446,15.57362663,196.28,196.22,15.57362663]
[1734666990642,15.57362663,196.29,196.23,15.57362663]
[1734666990852,0.89145172,196.28,196.23,15.57362663]
[1734666991161,0.89145172,196.28,196.24,15.57362663]
[1734666991358,2.39265172,196.31,196.26,15.57362663]
[1734666991564,1.5012,196.31,196.27,15.57362663]
[1734666991738,0.89145172,196.3,196.27,15.57362663]
[1734666991939,0.89145172,196.3,196.26,15.57362663]
[1734666992272,0.89145172,196.3,196.27,15.57362663]
[1734666992878,0.36231442,196.3,196.27,15.57362663]
[1734666993277,1.5012,196.31,196.27,15.57362663]
[1734666996062,0.36231442,196.3,196.25,15.57362663]
[1734666996768,1.86351442,196.31,196.26,15.57362663]
[1734666999769,1.86351442,196.31,196.27,15.57362663]
[1734667000291,1.86351442,196.31,196.26,15.57362663]
[1734667001354,1.86351442,196.31,196.27,15.57362663]
[1734667002994,1.86351442,196.31,196.27,9.97170373]
[1734667005366,1.86351442,196.31,196.26,9.97170373]
[1734667005580,11.83521815,196.31,196.25,20.0]
[1734667005783,9.97170373,196.3,196.25,20.0]
[1734667005994,0.36231442,196.29,196.25,20.0]
[1734667006289,0.36231442,196.29,196.24,9.97170373]
[1734667006705,0.36231442,196.29,196.22,20.0]
[1734667006706,0.36231442,196.29,196.23,9.97170373]
[1734667010067,0.30100011,196.29,196.23,9.97170373]
[1734667012095,0.30100011,196.29,196.24,9.97170373]
[1734667012295,0.30100011,196.3,196.25,9.97170373]
[1734667012596,10.27270384,196.3,196.23,9.97170373]
[1734667013774,0.30100011,196.3,196.24,9.97170373]
[1734667016772,1.80220011,196.31,196.25,9.97170373]
[1734667016990,1.5012,196.31,196.26,9.97170373]
[1734667018777,1.5012,196.31,196.27,9.97170373]
[1734667019298,1.5012,196.31,196.26,9.97170373]
[1734667019891,0.30100011,196.3,196.25,9.97170373]
[1734667020576,10.27270384,196.3,196.23,29.97170373]
[1734667022003,0.30100011,196.3,196.23,29.97170373]
[1734667022396,0.30100011,196.3,196.25,9.97170373]
[1734667023801,1.80220011,196.31,196.25,9.97170373]
[1734667024506,1.80220011,196.31,196.26,9.97170373]
[1734667024795,1.5012,196.31,196.26,9.97170373]
[1734667025496,1.89120011,196.36,196.29,9.97170373]
[1734667025700,1.89120011,196.36,196.31,9.97170373]
[1734667026073,1.5902,196.36,196.33,9.97170373]
[1734667027206,1.5902,196.36,196.31,9.97170373]
[1734667027391,1.5902,196.36,196.27,0.76393622]
[1734667027392,1.5902,196.36,196.32,9.97170373]
[1734667027902,1.5902,196.36,196.31,9.97170373]
[1734667028084,0.30100011,196.35,196.29,9.97170373]
[1734667028475,9.97170373,196.33,196.25,13.62843553]
[1734667028700,0.30100011,196.32,196.27,9.97170373]
[1734667029203,0.30100011,196.32,196.25,9.97170373]
[1734667029204,10.27270384,196.32,196.25,9.97170373]
[1734667030583,0.30100011,196.32,196.26,9.97170373]
[1734667033409,10.27270384,196.32,196.26,20.0]
[1734667033614,10.27270384,196.32,196.25,9.97170373]
[1734667035209,0.30100011,196.32,196.25,9.97170373]
[1734667035509,9.97170373,196.32,196.25,9.97170373]
[1734667035809,0.30100011,196.31,196.24,9.97170373]
[1734667035991,0.30100011,196.31,196.25,9.97170373]
[1734667036397,10.27270384,196.31,196.24,9.97170373]
[1734667037111,9.97170373,196.3,196.23,30.80461004]
[1734667037300,10.27270384,196.29,196.21,10.04416268]
[1734667037499,9.97170373,196.26,196.21,10.04416268]
[1734667037811,0.30100011,196.25,196.21,10.04416268]
[1734667038716,0.30100011,196.26,196.21,2.07625513]
[1734667039708,10.27270384,196.26,196.21,2.07625513]
[1734667040291,9.97170373,196.24,196.21,2.07625513]
[1734667040604,0.30100011,196.23,196.21,2.07625513]
[1734667044422,0.30100011,196.24,196.21,2.07625513]
[1734667044920,10.27270384,196.24,196.21,2.07625513]
[1734667046911,0.30100011,196.24,196.21,2.07625513]
[1734667047423,0.30100011,196.25,196.21,2.07625513]
[1734667048422,0.30100011,196.26,196.21,2.07625513]
[1734667049824,9.97170373,196.25,196.21,2.07625513]
[1734667050026,11.59260373,196.22,196.17,0.6230473]
[1734667050231,9.97170373,196.18,196.17,0.6230473]
[1734667050433,0.30100011,196.18,196.17,0.6230473]
[1734667050638,0.30100011,196.21,196.17,0.6230473]
[1734667050823,1.92190011,196.22,196.17,10.59475103]
[1734667051116,1.92190011,196.22,196.17,0.6230473]
[1734667052207,1.92190011,196.22,196.17,10.59475103]
[1734667052406,0.30100011,196.23,196.18,9.97170373]
[1734667052607,0.30100011,196.23,196.19,9.97170373]
[1734667053530,0.30100011,196.24,196.19,9.97170373]
[1734667054414,10.27270384,196.25,196.18,9.97170373]
[1734667054737,9.97170373,196.24,196.17,10.59475103]
[1734667054904,0.30100011,196.23,196.17,0.6230473]
[1734667055110,9.97170373,196.22,196.17,0.6230473]
[1734667055421,0.30100011,196.21,196.17,0.6230473]
[1734667056002,9.97170373,196.2,196.17,0.6230473]
[1734667056230,0.30100011,196.19,196.17,0.6230473]
[1734667056423,10.27270384,196.19,196.17,0.6230473]
[1734667056726,9.97170373,196.18,196.17,0.6230473]
[1734667057714,10.27270384,196.18,196.17,0.6230473]
[1734667058508,0.30100011,196.18,196.17,0.6230473]
[1734667058710,10.27270384,196.18,196.17,0.6230473]
[1734667059529,34.04958784,196.18,196.17,0.6230473]
[1734667059917,34.04958784,196.18,196.04,9.97170373]
[1734667060126,9.97170373,196.1,196.03,17.90770373]
[1734667060312,0.30100011,196.09,196.03,17.90770373]
[1734667060633,0.30100011,196.09,196.04,9.97170373]
[1734667062020,0.30100011,196.1,196.04,9.97170373]
[1734667063008,0.30100011,196.1,196.05,9.97170373]
[1734667063651,0.30100011,196.1,196.04,9.97170373]
[1734667064137,0.30100011,196.1,196.05,9.97170373]
[1734667064636,0.30100011,196.11,196.05,9.97170373]
[1734667064813,0.30100011,196.11,196.06,9.97170373]
[1734667065135,0.30100011,196.11,196.05,9.97170373]
[1734667065635,0.30100011,196.11,196.06,9.97170373]
[1734667065933,0.30100011,196.11,196.05,9.97170373]
[1734667069451,10.27270384,196.11,196.04,9.97170373]
[1734667070425,9.97170373,196.1,196.04,9.97170373]
[1734667070628,9.97170373,196.11,196.04,9.97170373]
[1734667070936,0.30100011,196.1,196.05,9.97170373]
[1734667071137,0.30100011,196.1,196.04,9.97170373]
[1734667071516,0.30100011,196.1,196.03,7.936]
[1734667072244,600.20100011,196.1,196.04,9.97170373]
[1734667072446,599.9,196.1,196.04,9.97170373]
[1734667073848,609.87170373,196.1,196.04,9.97170373]
[1734667074292,599.9,196.1,196.05,9.97170373]
[1734667074454,599.9,196.1,196.08,9.97170373]
[1734667074757,599.9,196.1,196.09,9.97170373]
[1734667077651,599.9,196.1,196.07,20.0]
[1734667077826,599.9,196.1,196.08,9.97170373]
[1734667078260,599.9,196.1,196.07,29.97170373]
[1734667079765,599.9,196.1,196.08,9.97170373]
[1734667080832,599.9,196.1,196.07,29.97170373]
[1734667082466,599.9,196.1,196.07,20.0]
[1734667085759,599.9,196.1,196.06,9.97170373]
[1734667086053,599.9,196.1,196.05,9.97170373]
[1734667086457,599.9,196.1,196.04,36.529084]
[1734667086656,599.9,196.1,196.05,9.97170373]
[1734667088353,599.9,196.1,196.06,9.97170373]
[1734667089652,599.9,196.1,196.05,9.97170373]
[1734667092761,599.9,196.1,196.0,12.7545]
[1734667092947,599.9,196.1,196.05,9.97170373]
[1734667093860,599.9,196.1,196.06,9.97170373]
[1734667094055,599.9,196.1,196.08,9.97170373]
[1734667096370,599.9,196.1,196.09,9.97170373]
[1734667096571,599.9,196.1,196.08,9.97170373]
[1734667097554,599.9,196.1,196.09,9.97170373]
[1734667101044,599.9,196.1,196.09,33.74858773]
[1734667101574,593.3694,196.1,196.09,73.76089265]
[1734667101878,560.2721,196.1,196.09,23.902374]
[1734667102079,550.94337281,196.1,196.09,73.76089265]
[1734667102368,536.28677281,196.1,196.09,73.76089265]
[1734667102575,515.50637281,196.1,196.09,73.76089265]
[1734667102757,503.20667281,196.1,196.09,73.76089265]
[1734667103247,486.30697281,196.1,196.09,73.76089265]
[1734667103448,474.48397281,196.1,196.09,73.76089265]
[1734667103754,468.97747281,196.1,196.09,73.76089265]
[1734667103973,463.56017281,196.1,196.09,73.76089265]
[1734667104308,445.39061313,196.1,196.09,73.76089265]
[1734667104765,440.54321313,196.1,196.09,73.76089265]
[1734667105151,315.288922,196.1,196.09,73.76089265]
[1734667105356,272.760822,196.1,196.09,73.76089265]
[1734667105575,199.247322,196.1,196.09,209.16089265]
[1734667105865,175.45444613,196.1,196.09,209.16089265]
[1734667106051,153.49620469,196.1,196.09,209.16089265]
[1734667106362,75.05440469,196.1,196.09,215.53911707]
[1734667106548,8.41270011,196.25,196.15,0.12549]
[1734667106748,8.1117,196.25,196.2,9.97170373]
[1734667108081,0.30100011,196.32,196.23,9.97170373]
[1734667108082,11.62470373,196.29,196.23,9.97170373]
[1734667108271,1.653,196.29,196.24,9.97170373]
[1734667108456,1.653,196.29,196.25,9.97170373]
[1734667109477,1.653,196.29,196.24,9.97170373]
[1734667113183,1.653,196.29,196.23,9.97170373]
[1734667116487,11.92570384,196.29,196.22,33.74858773]
[1734667116663,11.62470373,196.29,196.22,9.97170373]
[1734667119692,1.653,196.29,196.23,9.97170373]
[1734667119987,1.516,196.34,196.28,9.97170373]
[1734667120159,1.516,196.34,196.29,9.97170373]
[1734667120368,9.97170373,196.38,196.31,9.97170373]
[1734667120758,1.516,196.39,196.31,9.97170373]
[1734667120961,9.97170373,196.38,196.32,9.97170373]
[1734667121161,1.016,196.39,196.33,9.97170373]
[1734667122392,6.437,196.47,196.33,9.97170373]
[1734667122695,9.97170373,196.4,196.34,9.97170373]
[1734667123793,9.97170373,196.41,196.35,23.776884]
[1734667123969,0.30100011,196.46,196.35,23.776884]
[1734667123970,9.97170373,196.42,196.35,9.97170373]
[1734667124171,0.30100011,196.46,196.37,9.97170373]
[1734667124377,9.97170373,196.44,196.37,9.97170373]
[1734667127400,1.90230011,196.46,196.37,9.97170373]
[1734667127599,9.97170373,196.43,196.37,9.97170373]
[1734667128101,9.97170373,196.43,196.36,9.97170373]
[1734667128804,1.90230011,196.46,196.37,10.09719373]
[1734667128979,9.97170373,196.44,196.38,9.97170373]
[1734667133707,9.97170373,196.44,196.37,33.87407773]
[1734667136606,1.6013,196.46,196.39,23.776884]
[1734667136817,11.57300373,196.46,196.39,33.74858773]
[1734667137300,9.97170373,196.45,196.39,23.776884]
[1734667138212,9.97170373,196.44,196.39,23.776884]
[1734667138513,11.57300373,196.46,196.39,33.74858773]
[1734667138991,9.97170373,196.45,196.39,23.776884]
[1734667139517,11.57300373,196.46,196.39,33.74858773]
[1734667139891,1.6013,196.46,196.41,33.74858773]
[1734667140090,0.30100011,196.52,196.41,9.97170373]
[1734667140091,9.97170373,196.48,196.41,9.97170373]
[1734667140290,9.97170373,196.48,196.42,9.97170373]
[1734667140516,9.97170373,196.48,196.41,9.97170373]
[1734667141403,9.97170373,196.44,196.35,0.76346554]
[1734667141597,9.97170373,196.41,196.34,9.97170373]
[1734667142422,9.97170373,196.4,196.34,9.97170373]
[1734667142626,9.97170373,196.4,196.33,9.97170373]
[1734667142829,12.7246,196.47,196.32,9.97170373]
[1734667142830,9.97170373,196.39,196.32,9.97170373]
[1734667143606,9.97170373,196.36,196.29,9.97170373]
[1734667144332,9.97170373,196.36,196.3,9.97170373]
[1734667144706,10.27270384,196.35,196.28,9.97170373]
[1734667144907,9.97170373,196.34,196.27,9.97170373]
[1734667145526,9.97170373,196.3,196.24,9.97170373]
[1734667145831,9.97170373,196.31,196.24,9.97170373]
[1734667147126,9.97170373,196.32,196.25,9.97170373]
[1734667147630,9.97170373,196.32,196.22,2.0881]
[1734667147631,9.97170373,196.33,196.26,9.97170373]
[1734667147814,10.27270384,196.33,196.26,9.97170373]
[1734667148213,9.97170373,196.33,196.26,9.97170373]
[1734667149033,0.30100011,196.37,196.29,9.97170373]
[1734667149232,9.97170373,196.36,196.29,9.97170373]
[1734667149829,2.56600011,196.38,196.25,0.76400214]
[1734667149830,9.97170373,196.35,196.25,0.76400214]
[1734667150031,9.97170373,196.34,196.27,29.97170373]
[1734667150236,0.30100011,196.33,196.27,9.97170373]
[1734667150739,10.27270384,196.33,196.26,9.97170373]
[1734667150925,9.97170373,196.32,196.26,9.97170373]
[1734667151109,9.97170373,196.33,196.26,9.97170373]
[1734667153024,0.30100011,196.32,196.26,9.97170373]
[1734667153228,0.30100011,196.32,196.26,29.97170373]